bitfinex-derivatives/quotes_ETHF0:USTF0_20250830
["timestamp","ask_amount","ask_price","bid_price","bid_amount"]
[1756523744723,0.2118,4330.0,4329.9,3.6039]
[1756523745020,0.5363,4330.0,4329.9,3.8399]
[1756523750618,0.4245,4330.2,4330.1,0.2291]
[1756523750823,0.1,4330.2,4330.1,0.6321]
[1756523751324,0.4245,4330.2,4330.1,0.6321]
[1756523751720,3.2078,4331.5,4331.4,0.41549]
[1756523751925,2.91346996,4333.6,4331.4,0.41549]
[1756523751926,1.66038809,4333.4,4332.7,0.41535]
[1756523752124,1.56979107,4333.6,4332.8,36.91963982]
[1756523752327,1.56979107,4333.6,4332.9,0.20483982]
[1756523752328,0.53994942,4333.5,4332.9,0.20483982]
[1756523752528,0.3245,4333.4,4333.0,0.44712333]
[1756523752824,0.3245,4334.1,4333.3,3.2078]
[1756523753132,2.1245,4334.2,4334.0,3.2078]
[1756523753324,1.8,4334.2,4334.0,3.2078]
[1756523753528,0.5363,4334.1,4334.0,3.2078]
[1756523753729,0.53994942,4334.1,4334.0,3.4508]
[1756523754128,0.00364942,4334.1,4334.0,3.4508]
[1756523754328,1.8,4334.2,4334.0,3.4508]
[1756523754723,2.1245,4334.2,4334.0,3.4508]
[1756523755532,2.3363,4334.2,4334.0,3.4508]
[1756523755931,0.3245,4334.1,4334.0,3.2078]
[1756523756131,0.53994942,4334.1,4334.0,3.2078]
[1756523756337,5.78524049,4334.1,4334.0,3.4508]
[1756523757430,0.2118,4333.4,4333.3,3.2078]
[1756523757632,0.5363,4333.4,4333.3,3.4508]
[1756523757831,0.53994942,4333.4,4333.3,3.4508]
[1756523758031,0.53994942,4333.4,4333.3,3.2078]
[1756523758237,0.53994942,4333.4,4333.3,3.4508]
[1756523759237,0.5363,4333.4,4333.3,3.4508]
[1756523760434,0.5363,4333.4,4333.3,0.243]
[1756523760435,0.21544942,4333.4,4333.3,0.243]
[1756523761139,0.53994942,4333.4,4333.3,0.243]
[1756523761336,7.2078,4333.4,4331.7,3.2078]
[1756523761540,1.78159107,4331.9,4331.8,0.243]
[1756523761937,0.5363,4331.9,4331.8,0.243]
[1756523762935,0.2118,4331.9,4331.8,0.243]
[1756523763342,0.5363,4331.9,4331.8,0.243]
[1756523763530,4.5363,4331.9,4331.8,0.243]
[1756523764032,0.5363,4331.2,4331.1,3.2078]
[1756523764345,1.24529107,4331.3,4331.1,3.4508]
[1756523764838,0.3245,4331.4,4331.1,3.4508]
[1756523765038,1.56979107,4331.3,4331.1,3.4508]
[1756523765337,0.3245,4331.3,4331.1,3.4508]
[1756523765541,0.3245,4331.7,4331.1,3.4508]
[1756523765940,0.5363,4331.7,4331.1,3.4508]
[1756523766143,0.3245,4332.2,4331.1,3.4508]
[1756523766345,1.24529107,4331.7,4331.1,3.4508]
[1756523766948,1.80409107,4331.7,4331.6,3.3346]
[1756523767247,1.80409107,4331.7,4331.6,3.5288]
[1756523767443,0.5588,4331.7,4331.6,0.321]
[1756523767643,0.5588,4331.7,4331.6,0.243]
[1756523767849,0.5588,4331.7,4331.1,3.2078]
[1756523767850,0.2137,4331.7,4331.1,3.2078]
[1756523768044,1.45899107,4331.2,4331.1,3.2078]
[1756523768345,1.80409107,4331.2,4331.1,3.4508]
[1756523768549,0.5588,4331.2,4331.1,3.2078]
[1756523768749,0.5588,4331.2,4331.1,3.4508]
[1756523770442,0.5588,4331.2,4331.1,0.243]
[1756523771645,0.5588,4331.2,4331.1,0.078]
[1756523771849,0.5588,4331.2,4331.1,0.3698]
[1756523772451,0.5588,4331.2,4331.1,0.321]
[1756523772648,1.23329641,4334.6,4332.1,0.078]
[1756523772851,3.2078,4334.4,4333.7,0.1268]
[1756523773163,2.1451,4334.2,4334.1,0.1268]
[1756523773341,2.1451,4334.2,4334.1,0.3748]
[1756523773540,1.8,4334.2,4334.1,0.3748]
[1756523775051,2.1451,4334.2,4334.1,0.3748]
[1756523775255,2.3588,4334.2,4334.1,0.3748]
[1756523777753,0.3451,4334.1,4333.6,3.2078]
[1756523777954,0.2137,4333.8,4333.7,0.3748]
[1756523778153,0.5588,4333.8,4333.7,0.3748]
[1756523780859,0.5588,4333.8,4333.7,0.3738]
[1756523781157,0.5588,4333.8,4333.7,0.325]
[1756523781554,1.45899107,4333.8,4333.6,3.2078]
[1756523781854,0.2137,4333.8,4333.6,3.2078]
[1756523782058,0.2137,4333.8,4333.7,0.247]
[1756523782252,0.5588,4333.7,4333.2,1.22237256]
[1756523782452,1.8,4334.2,4333.1,3.2078]
[1756523782453,0.2137,4333.4,4333.3,0.247]
[1756523782659,0.5588,4333.4,4333.3,0.247]
[1756523784158,0.2137,4333.4,4333.1,4.43017256]
[1756523784355,1.80409107,4333.2,4333.1,4.49937256]
[1756523784851,0.5588,4333.2,4333.1,3.524]
[1756523785258,0.5588,4333.2,4333.1,3.523]
[1756523786360,0.5588,4333.2,4333.1,3.2078]
[1756523786558,0.5588,4333.2,4333.1,3.4538]
[1756523787657,0.5588,4333.2,4333.1,0.246]
[1756523787854,0.5588,4333.2,4333.1,0.3152]
[1756523788052,0.5588,4333.2,4333.1,0.3584]
[1756523790661,0.5588,4333.2,4333.1,4.78857256]
[1756523792564,0.5588,4333.2,4333.1,4.78757256]
[1756523793463,4.5588,4333.2,4333.1,3.2078]
[1756523793666,0.2137,4332.8,4332.6,3.2078]
[1756523793862,5.0078,4334.2,4332.9,0.2292]
[1756523794060,0.2137,4333.4,4333.3,0.597]
[1756523794256,0.5588,4333.4,4333.3,0.803]
[1756523795768,0.3451,4334.1,4333.3,0.4352]
[1756523796065,0.2137,4333.5,4333.4,0.597]
[1756523796267,0.5588,4333.5,4333.4,0.597]
[1756523796461,1.80409107,4333.5,4333.4,0.597]
[1756523796660,1.80409107,4333.5,4333.4,0.4752]
[1756523797459,1.80409107,4333.5,4333.4,0.8223]
[1756523798264,1.45899107,4333.5,4333.4,0.246]
[1756523799067,1.81419107,4333.5,4333.4,0.4706]
[1756523799359,1.81419107,4333.5,4333.4,0.8177]
[1756523800165,0.5689,4333.5,4333.4,0.8177]
[1756523800962,5.0078,4334.2,4333.5,0.3471]
[1756523801167,1.82549107,4333.7,4333.6,3.7795]
[1756523801367,1.82549107,4333.7,4333.6,4.0245]
[1756523801564,0.5802,4333.7,4333.6,5.6612519]
[1756523801764,0.5802,4333.7,4333.6,4.0245]
[1756523802564,0.5802,4333.7,4333.6,3.7795]
[1756523802763,5.2328,4334.2,4334.1,0.2246]
[1756523802968,5.2328,4334.2,4334.1,0.4696]
[1756523803371,5.588,4334.2,4334.1,0.4696]
[1756523803869,0.5802,4334.1,4334.0,1.64335297]
[1756523804069,1.82549107,4334.1,4334.0,1.88835297]
[1756523804665,1.82549107,4334.1,4334.0,0.4696]
[1756523804865,1.82549107,4334.1,4334.0,0.8167]
[1756523806370,1.82549107,4334.1,4334.0,2.46005297]
[1756523807473,1.82549107,4334.1,4334.0,0.8167]
[1756523810868,0.3552,4334.0,4333.8,2.06641367]
[1756523811065,0.225,4334.0,4333.9,0.245]
[1756523811265,0.5802,4334.0,4333.9,0.245]
[1756523811562,0.5802,4334.0,4333.9,0.8167]
[1756523812174,0.5802,4334.0,4333.9,2.88311367]
[1756523812366,0.5802,4334.0,4333.9,0.8167]
[1756523812671,5.0078,4334.2,4334.1,0.2246]
[1756523812872,5.0078,4334.2,4334.1,0.8157]
[1756523813266,5.363,4334.2,4334.1,0.8157]
[1756523813670,5.588,4334.2,4334.1,0.8157]
[1756523815469,5.0078,4334.2,4334.1,1.23094]
[1756523815675,5.588,4334.2,4334.1,2.62601863]
[1756523815873,5.588,4334.2,4334.1,2.87001863]
[1756523816374,5.588,4334.2,4334.1,2.62601863]
[1756523816564,5.588,4334.2,4334.1,0.4686]
[1756523816768,5.588,4334.2,4334.1,0.8157]
[1756523817871,5.588,4334.2,4334.1,0.5717]
[1756523818072,5.588,4334.2,4334.1,0.8157]
[1756523820575,0.5802,4334.1,4334.0,2.05431863]
[1756523820777,1.47029107,4334.1,4334.0,0.244]
[1756523821177,1.47029107,4334.1,4334.0,1.88730196]
[1756523821377,1.82549107,4334.1,4334.0,0.244]
[1756523821573,5.82549107,4334.1,4334.0,1.64330196]
[1756523821778,5.82549107,4334.1,4334.0,0.244]
[1756523822179,5.82549107,4334.1,4334.0,1.88730196]
[1756523822380,5.82549107,4334.1,4334.0,0.244]
[1756523823183,1.82549107,4334.1,4334.0,0.244]
[1756523825284,1.82549107,4334.1,4334.0,1.88639838]
[1756523825776,0.5802,4334.0,4333.9,1.88639838]
[1756523826183,1.82549107,4334.0,4333.9,1.88639838]
[1756523827680,1.82549107,4334.0,4333.9,1.64339838]
[1756523827883,1.82549107,4334.0,4333.9,1.88639838]
[1756523828483,1.82549107,4334.0,4333.9,1.64339838]
[1756523828684,1.82549107,4334.0,4333.9,1.88639838]
[1756523829178,1.82549107,4334.0,4333.9,1.64339838]
[1756523830780,0.334,4333.9,4333.8,1.64339838]
[1756523830977,1.82169107,4333.9,4333.6,1.88639838]
[1756523831177,1.82169107,4333.7,4333.6,0.243]
[1756523831477,0.5764,4333.5,4333.4,1.64339838]
[1756523831782,0.2424,4332.7,4332.6,5.26211863]
[1756523832084,1.81149107,4332.7,4332.6,3.7848]
[1756523832286,0.5662,4332.7,4332.6,3.7848]
[1756523832483,0.5662,4332.7,4332.4,33.238]
[1756523832681,0.5662,4332.1,4332.0,5.26211863]
[1756523832878,1.81149107,4332.1,4332.0,3.2078]
[1756523833190,0.3238,4332.0,4331.9,0.577]
[1756523833384,0.5662,4332.0,4331.9,0.577]
[1756523833585,1.81149107,4332.0,4331.9,0.577]
[1756523834081,1.81149107,4332.0,4331.8,0.243]
[1756523834278,1.81149107,4331.9,4331.8,0.243]
[1756523834474,1.81149107,4331.9,4331.8,0.4741]
[1756523834685,0.5662,4331.9,4331.8,0.82]
[1756523835685,0.5662,4331.9,4331.8,0.577]
[1756523835881,0.5662,4331.9,4331.8,0.819]
[1756523845780,0.3246,4332.6,4332.5,0.577]
[1756523846393,3.2078,4332.7,4332.5,0.577]
[1756523846588,1.24529107,4332.6,4332.5,0.577]
[1756523846983,1.81229107,4332.6,4332.5,0.577]
[1756523847798,1.81229107,4332.6,4332.5,0.99239]
[1756523848090,1.48769107,4332.6,4332.5,0.99239]
[1756523848898,3.7748,4333.2,4333.1,0.577]
[1756523849284,3.7748,4333.2,4333.1,0.3459]
[1756523849891,3.7748,4333.2,4333.1,0.577]
[1756523850090,0.567,4333.2,4333.1,0.577]
[1756523850790,0.567,4333.6,4333.5,0.2311]
[1756523850992,0.567,4333.6,4333.5,0.577]
[1756523851293,1.81229107,4333.6,4333.5,0.577]
[1756523851893,0.2424,4333.5,4333.1,0.3459]
[1756523852091,0.567,4333.2,4333.0,0.76124]
[1756523852295,1.81229107,4333.1,4332.9,0.242]
[1756523852489,0.3246,4333.0,4332.9,0.5879]
[1756523852695,1.81229107,4333.0,4332.9,0.5879]
[1756523852898,1.81229107,4333.0,4332.9,0.819]
[1756523854099,1.81229107,4333.0,4332.5,0.242]
[1756523854299,0.567,4332.4,4332.3,0.577]
[1756523854602,1.81229107,4332.4,4332.3,0.818]
[1756523854794,0.567,4332.4,4332.3,0.818]
[1756523854996,0.567,4332.4,4332.3,0.577]
[1756523856607,0.2424,4332.4,4332.3,0.577]
[1756523856807,0.241,4333.1,4332.4,0.3459]
[1756523856808,0.3246,4333.0,4332.4,0.3459]
[1756523857213,1.46739107,4332.5,4332.4,0.5697]
[1756523857513,1.78499107,4332.5,4332.4,0.5697]
[1756523863617,1.78499107,4332.5,4332.4,0.8107]
[1756523869321,1.78499107,4332.5,4332.4,2.44894363]
[1756523869708,0.3176,4333.1,4332.5,0.3312]
[1756523869913,0.5484,4333.1,4332.5,0.3312]
[1756523870219,1.24529107,4332.6,4332.5,2.19324363]
[1756523870618,1.78499107,4332.6,4332.5,2.19324363]
[1756523870821,1.78499107,4332.6,4332.5,0.555]
[1756523872709,0.5397,4332.6,4332.5,0.555]
[1756523872918,1.78499107,4332.6,4332.5,0.795]
[1756523874319,1.78499107,4332.6,4332.5,0.3312]
[1756523874621,1.78499107,4332.6,4332.5,0.24]
[1756523874821,0.3176,4332.5,4332.4,1.63824363]
[1756523875025,1.78499107,4332.5,4332.4,1.87824363]
[1756523875218,1.78499107,4332.5,4332.3,1.63824363]
[1756523875417,0.5397,4332.5,4332.4,1.87824363]
[1756523875616,0.5397,4332.5,4332.4,2.20944363]
[1756523876018,1.78499107,4332.5,4332.4,2.43324363]
[1756523876818,1.78499107,4332.5,4332.4,0.795]
[1756523877425,1.46739107,4332.5,4332.4,0.795]
[1756523877621,3.2078,4332.7,4332.6,0.2238]
[1756523877821,3.2078,4332.7,4332.6,2.2032521]
[1756523879229,3.2078,4332.7,4332.5,0.4154]
[1756523879230,0.3176,4333.1,4332.7,0.3312]
[1756523879415,1.24529107,4332.9,4332.8,0.795]
[1756523879820,0.3176,4333.1,4332.9,0.3312]
[1756523880025,0.5397,4333.1,4333.0,0.555]
[1756523880621,1.78499107,4333.1,4333.0,0.555]
[1756523881130,3.5254,4333.4,4333.0,0.97035]
[1756523881331,1.24529107,4333.3,4333.2,0.555]
[1756523881523,0.5397,4333.3,4333.2,0.555]
[1756523881825,0.5397,4333.1,4333.0,1.88708194]
[1756523882024,3.2078,4334.6,4334.1,0.2238]
[1756523882225,3.2078,4334.6,4334.1,2.44406731]
[1756523883331,3.2078,4334.6,4334.1,0.797]
[1756523883830,3.2078,4334.6,4334.1,2.44406731]
[1756523884327,3.2078,4334.6,4334.1,0.797]
[1756523886327,0.3176,4334.4,4334.1,0.555]
[1756523886531,0.3176,4334.4,4334.1,0.796]
[1756523886830,3.2078,4334.6,4334.1,0.796]
[1756523887224,2.0153,4334.2,4334.1,0.555]
[1756523887425,2.0153,4334.2,4334.1,0.796]
[1756523887426,2.3207,4334.2,4334.1,0.796]
[1756523897532,1.8,4334.2,4334.1,5.21124]
[1756523897733,1.8,4334.2,4334.1,0.795]
[1756523897935,1.8,4334.2,4334.1,0.796]
[1756523899337,1.8,4334.2,4334.1,0.555]
[1756523899539,0.18451622,4336.4,4334.1,0.555]
[1756523899540,0.3204,4335.5,4335.4,0.5541]
[1756523899742,3.2078,4336.8,4335.4,4.0029]
[1756523900045,0.2153,4335.6,4335.5,0.7981]
[1756523900345,3.2078,4336.8,4335.5,0.7981]
[1756523900538,1.24529107,4336.0,4335.6,0.3367]
[1756523900734,1.46059107,4336.0,4335.9,0.5541]
[1756523900939,1.46059107,4336.0,4335.9,0.7981]
[1756523901136,0.2153,4336.0,4335.9,4.0059]
[1756523901753,0.5357,4336.0,4335.9,4.0059]
[1756523903942,5.78099107,4336.0,4335.9,3.4518]
[1756523904137,5.78099107,4336.0,4335.9,0.244]
[1756523904337,0.5357,4335.5,4335.4,3.2078]
[1756523904544,1.78099107,4335.5,4335.4,3.4508]
[1756523904749,1.78099107,4335.5,4334.4,0.3367]
[1756523904750,0.1143,4335.4,4334.4,0.3367]
[1756523904943,0.1143,4334.9,4334.5,0.7971]
[1756523905248,1.24529107,4334.7,4334.6,0.5541]
[1756523905547,1.24529107,4334.7,4334.5,3.4508]
[1756523905548,1.24529107,4334.8,4334.7,0.5541]
[1756523905746,0.3204,4335.9,4334.6,0.2307]
[1756523905943,0.5357,4335.9,4335.8,3.6579]
[1756523906142,0.5357,4335.9,4335.8,3.9019]
[1756523907249,0.5357,4335.9,4335.8,3.9029]
[1756523907544,0.5357,4335.9,4335.8,3.2078]
[1756523907748,4.2153,4335.9,4335.8,0.245]
[1756523908048,7.4231,4335.9,4335.2,3.2078]
[1756523908250,3.4231,4335.9,4335.6,0.245]
[1756523908548,0.73969107,4335.3,4335.2,3.2078]
[1756523908750,0.41929107,4335.3,4335.0,0.245]
[1756523909050,0.2153,4335.3,4334.8,0.245]
[1756523909241,0.2153,4334.5,4334.4,3.2078]
[1756523909443,0.5357,4334.4,4334.3,0.5541]
[1756523909641,0.2153,4334.4,4334.3,0.7991]
[1756523909845,0.3204,4335.6,4335.1,0.3367]
[1756523910049,0.3204,4335.6,4335.5,0.5541]
[1756523910050,0.2153,4335.6,4335.5,0.5541]
[1756523910251,0.5357,4335.6,4335.5,0.5541]
[1756523910445,0.5357,4335.3,4335.2,0.5541]
[1756523910742,0.5357,4335.2,4335.1,3.2078]
[1756523910949,0.5357,4335.2,4335.1,0.249]
[1756523911150,0.5357,4335.2,4335.1,3.6742]
[1756523911349,0.5357,4335.2,4335.1,0.249]
[1756523912051,0.5357,4334.8,4334.7,0.5541]
[1756523912443,0.5357,4334.8,4334.7,0.8031]
[1756523913137,0.73969107,4334.8,4334.7,0.8031]
[1756523913456,3.5282,4336.4,4336.3,0.2174]
[1756523913646,0.5357,4336.4,4336.3,0.5541]
[1756523913840,0.5357,4336.4,4336.3,0.8021]
[1756523916747,0.3204,4337.9,4337.3,0.5541]
[1756523917046,0.2116,4337.5,4337.3,0.3367]
[1756523917252,0.2116,4337.1,4337.0,3.4219]
[1756523917640,0.2116,4337.1,4337.0,3.6719]
[1756523917846,0.3424,4337.9,4337.1,0.3511]
[1756523918047,0.3424,4337.6,4337.2,0.4641]
[1756523918246,0.554,4337.9,4337.8,0.5652]
[1756523918445,0.554,4337.9,4337.8,0.8152]
[1756523918842,0.554,4337.9,4337.8,0.4641]
[1756523919455,0.554,4337.9,4337.8,0.8152]
[1756523919652,0.554,4337.9,4337.8,0.4641]
[1756523920554,0.554,4337.9,4337.8,0.2141]
[1756523920754,0.554,4337.9,4337.8,0.4641]
[1756523921654,0.2116,4337.6,4337.5,3.2078]
[1756523921861,0.3424,4337.5,4337.0,3.5589]
[1756523922052,0.41559107,4337.6,4337.0,3.5589]
[1756523922053,0.554,4337.1,4337.0,3.773]
[1756523922254,0.554,4337.1,4337.0,4.023]
[1756523922448,0.75799107,4337.1,4337.0,4.023]
[1756523923560,0.75799107,4337.1,4337.0,3.2078]
[1756523923763,0.75799107,4337.1,4337.0,3.4568]
[1756523923960,0.75799107,4337.1,4337.0,4.022]
[1756523928853,0.554,4337.8,4337.7,0.2141]
[1756523929061,0.554,4337.8,4337.7,0.8142]
[1756523929361,0.75799107,4337.8,4337.7,0.8142]
[1756523930057,0.2116,4337.2,4337.1,0.5652]
[1756523930258,0.554,4337.2,4337.1,0.8142]
[1756523930762,0.554,4337.2,4337.1,0.5652]
[1756523931056,0.3424,4337.1,4336.7,0.3511]
[1756523931259,0.75799107,4336.6,4336.5,3.4219]
[1756523931454,0.75799107,4336.6,4336.5,4.021]
[1756523931656,0.554,4336.6,4336.5,4.021]
[1756523931958,0.75799107,4336.6,4336.5,4.021]
[1756523932157,0.75799107,4336.6,4336.5,3.773]
[1756523932362,0.75799107,4336.6,4336.5,4.021]
[1756523932865,0.554,4336.6,4336.5,3.6699]
[1756523933058,0.75799107,4336.6,4336.5,3.6699]
[1756523933363,0.20399107,4336.6,4336.5,4.021]
[1756523933662,0.3424,4336.9,4336.6,0.3511]
[1756523933860,0.554,4336.9,4336.8,0.5652]
[1756523937664,0.554,4336.9,4336.8,0.2141]
[1756523938061,0.3424,4336.8,4336.6,0.3511]
[1756523938368,0.554,4336.7,4336.6,0.5652]
[1756523938565,0.554,4336.7,4336.6,0.8132]
[1756523939066,0.554,4336.7,4336.6,0.5652]
[1756523939263,0.554,4336.7,4336.6,0.2141]
[1756523939465,0.554,4336.7,4336.6,0.4611]
[1756523940273,0.3424,4336.7,4336.6,0.8122]
[1756523940569,0.554,4336.7,4336.6,0.8122]
[1756523944274,0.554,4336.7,4336.6,0.5652]
[1756523944467,0.554,4336.7,4336.6,0.8122]
[1756523946872,0.554,4336.7,4336.6,0.5652]
[1756523947075,0.554,4336.7,4336.6,0.8112]
[1756523949970,0.554,4336.7,4336.6,0.5652]
[1756523950372,0.554,4336.7,4336.6,0.8112]
[1756523951669,0.554,4336.7,4336.6,0.5652]
[1756523951871,0.2361,4335.9,4335.8,0.582]
[1756523952176,0.77329107,4335.9,4335.8,0.828]
[1756523952472,0.2361,4335.9,4335.5,3.2078]
[1756523952671,0.77329107,4335.6,4335.5,3.7898]
[1756523952975,0.77329107,4335.6,4335.5,4.0358]
[1756523955867,0.77329107,4335.6,4335.5,4.0348]
[1756523956376,0.44009107,4335.6,4335.5,4.0348]
[1756523956578,0.20399107,4335.6,4335.5,4.0348]
[1756523956775,0.3332,4335.9,4335.8,0.2296]
[1756523956983,0.5693,4335.9,4335.8,0.582]
[1756523958886,0.2361,4336.7,4336.6,0.582]
[1756523959104,0.44009107,4336.7,4336.6,0.827]
[1756523959387,0.2361,4336.7,4336.6,0.827]
[1756523959786,0.5693,4336.7,4336.6,0.827]
[1756523961489,0.5693,4336.7,4336.6,0.828]
[1756523962689,0.5693,4336.7,4336.6,0.4756]
[1756523963487,0.5693,4336.7,4336.6,0.582]
[1756523963687,0.5693,4336.7,4336.6,0.828]
[1756523963982,0.5693,4336.7,4336.0,0.3524]
[1756523964184,0.2361,4335.9,4335.7,3.2078]
[1756523964381,0.77329107,4335.8,4335.7,4.0348]
[1756523964580,0.20399107,4335.8,4335.7,4.44989]
[1756523965880,0.5693,4336.4,4336.3,0.582]
[1756523966085,0.79992,4336.4,4336.3,0.582]
[1756523966285,0.5693,4336.4,4336.3,0.582]
[1756523966886,0.2361,4336.4,4336.3,0.582]
[1756523967384,3.2078,4337.1,4336.1,0.66005]
[1756523967385,0.3332,4337.0,4336.4,0.3524]
[1756523967585,0.5638,4337.0,4336.4,0.3524]
[1756523967793,0.53719107,4336.5,4336.4,0.582]
[1756523968292,0.77329107,4336.5,4336.4,0.582]
[1756523976994,3.2078,4337.1,4336.4,0.582]
[1756523976995,3.2078,4337.1,4336.4,0.2296]
[1756523977193,3.2078,4337.1,4336.3,0.245]
[1756523977194,0.2405,4337.5,4337.4,0.2197]
[1756523977394,0.2405,4337.5,4337.4,0.8058]
[1756523977395,0.78499107,4337.5,4337.4,0.8058]
[1756523977691,0.2405,4337.5,4337.4,0.8058]
[1756523979193,0.2405,4337.5,4337.4,0.3421]
[1756523979399,0.581,4337.3,4337.2,0.5861]
[1756523979695,0.581,4337.3,4337.2,0.3421]
[1756523979895,0.78499107,4337.3,4337.2,0.3421]
[1756523980092,0.581,4337.3,4337.2,0.5618]
[1756523980293,3.2078,4337.6,4337.4,0.2197]
[1756523980492,3.41179107,4337.6,4337.5,0.8058]
[1756523981395,3.75229107,4337.6,4337.5,0.8058]
[1756523981790,3.99279107,4337.6,4337.5,0.8058]
[1756523982898,0.78499107,4337.6,4337.5,0.8058]
[1756523985193,3.2078,4338.1,4337.6,0.3421]
[1756523985393,0.20399107,4337.8,4337.6,0.3421]
[1756523985694,0.3405,4337.7,4337.6,0.5618]
[1756523986301,0.2405,4337.4,4337.3,3.4275]
[1756523986490,0.581,4337.4,4337.3,4.0126]
[1756523990495,0.244,4338.5,4337.4,0.3421]
[1756523990698,0.78499107,4337.6,4337.5,0.5618]
[1756523992704,0.581,4337.6,4337.5,0.5618]
[1756523993004,0.78499107,4337.6,4337.5,0.5618]
[1756523997503,0.78499107,4337.6,4337.5,0.8038]
[1756523999097,0.581,4337.6,4337.5,0.8038]
[1756523999298,0.244,4338.5,4337.6,0.3421]
[1756523999501,0.20399107,4337.7,4337.6,0.5618]
[1756523999806,0.2405,4337.8,4337.7,0.5618]
[1756524000098,0.3405,4338.0,4337.9,0.2197]
[1756524000299,0.54449107,4338.1,4337.9,0.4617]
[1756524000506,0.581,4338.1,4338.0,0.5618]
[1756524001606,0.2405,4338.2,4338.1,0.5618]
[1756524001806,0.78499107,4338.2,4338.1,0.8038]
[1756524002105,0.78499107,4338.2,4338.1,0.5618]
[1756524002106,0.581,4338.2,4338.1,0.5618]
[1756524002308,0.581,4338.2,4338.1,0.8038]
[1756524005605,0.581,4338.2,4338.1,0.5618]
[1756524005806,0.3405,4338.7,4338.1,0.4617]
[1756524006009,0.581,4338.6,4338.5,0.2197]
[1756524006598,0.78499107,4338.6,4338.5,0.5618]
[1756524007509,0.55369107,4338.6,4338.5,3.7696]
[1756524007806,0.77209107,4338.6,4338.5,3.7696]
[1756524009198,0.2184,4338.7,4338.6,0.3338]
[1756524009398,0.2184,4338.7,4338.5,3.2078]
[1756524009399,0.5681,4338.7,4338.5,3.2078]
[1756524009609,0.5681,4338.4,4338.3,0.5635]
[1756524009802,0.5681,4338.4,4338.3,0.8055]
[1756524012607,0.5681,4338.4,4338.3,0.8045]
[1756524012807,0.5681,4338.4,4338.3,0.5635]
[1756524012997,0.5681,4338.4,4338.3,0.8045]
[1756524013202,0.5681,4338.4,4338.3,0.5635]
[1756524013403,0.5681,4338.4,4338.3,0.8045]
[1756524013708,0.5681,4338.4,4338.3,0.5635]
[1756524013903,0.5681,4338.4,4338.3,0.8045]
[1756524014297,0.0073576,4339.6,4338.3,0.8045]
[1756524014504,0.20399107,4338.5,4338.4,0.5635]
[1756524014698,0.55369107,4338.5,4338.4,0.5635]
[1756524015008,0.5681,4338.5,4338.4,0.8045]
[1756524015704,0.5681,4338.5,4338.4,0.5635]
[1756524015908,0.5681,4338.5,4338.4,0.8045]
[1756524017100,0.5681,4339.5,4339.4,0.2297]
[1756524017306,0.5681,4339.5,4339.4,0.5635]
[1756524017607,0.5681,4339.0,4338.9,3.7713]
[1756524018009,0.5681,4339.0,4338.9,4.0123]
[1756524018410,0.5681,4339.5,4339.4,0.2297]
[1756524018609,0.5681,4339.5,4339.4,0.5635]
[1756524018912,0.77209107,4339.5,4339.4,0.5635]
[1756524019113,0.0073576,4339.6,4339.4,0.5635]
[1756524019305,0.5681,4339.5,4339.4,0.5635]
[1756524021013,0.0073576,4339.6,4339.5,0.3338]
[1756524021310,0.5754576,4339.6,4339.5,0.8055]
[1756524021614,0.77944867,4339.6,4339.5,0.8055]
[1756524022206,0.3570576,4339.6,4339.5,3.7713]
[1756524022410,0.5754576,4339.6,4339.5,4.0133]
[1756524022708,0.5754576,4339.6,4339.5,0.242]
[1756524022709,0.2257576,4339.6,4339.5,0.242]
[1756524022912,0.42974867,4339.6,4339.0,3.2078]
[1756524023207,0.20399107,4339.5,4339.1,0.242]
[1756524023412,0.5681,4339.4,4339.3,0.5635]
[1756524023613,0.5681,4339.4,4339.3,0.8055]
[1756524024111,0.5681,4339.4,4339.3,0.242]
[1756524024315,0.5681,4339.1,4339.0,3.7713]
[1756524024611,0.77209107,4339.1,4339.0,4.0133]
[1756524025409,0.77209107,4339.1,4339.0,3.7713]
[1756524025603,0.77209107,4339.1,4339.0,4.0133]
[1756524025802,0.77209107,4339.1,4339.0,3.7713]
[1756524026010,5.00256107,4339.1,4338.7,0.242]
[1756524026310,0.77209107,4338.5,4338.4,3.7713]
[1756524026499,0.77209107,4338.5,4338.4,4.0133]
[1756524026811,0.5681,4338.5,4338.4,4.0133]
[1756524027817,0.5681,4339.4,4339.3,0.5635]
[1756524028109,0.5681,4339.4,4339.3,0.4717]
[1756524028309,0.5681,4339.4,4339.3,0.2297]
[1756524028508,0.5681,4339.4,4339.3,0.8055]
[1756524029114,0.2184,4339.4,4339.3,0.8055]
[1756524030116,0.0073576,4339.6,4339.3,0.8055]
[1756524030117,0.0073576,4339.6,4339.4,0.3338]
[1756524030321,0.20399107,4339.5,4339.4,0.5635]
[1756524030615,0.0073576,4339.6,4339.5,0.3338]
[1756524030616,0.21134867,4339.6,4339.5,0.3338]
[1756524030808,0.0073576,4339.6,4339.5,0.5635]
[1756524031601,0.1,4340.2,4340.1,0.2297]
[1756524031803,0.1,4340.2,4340.1,4.0133]
[1756524033811,0.5681,4341.4,4341.0,0.3338]
[1756524034010,0.5681,4341.4,4341.1,0.242]
[1756524034314,0.5681,4341.2,4341.1,0.8055]
[1756524034515,0.80007581,4341.2,4341.1,0.8055]
[1756524036407,0.23197581,4341.2,4341.1,0.8055]
[1756524036808,0.45037581,4341.2,4341.1,0.5635]
[1756524037005,0.77297581,4341.2,4341.1,0.8055]